fUST/lending_fUST_20250429
["ID","MTS","AMOUNT","RATE_DAILY","PERIOD"]
[359270703,1745881842093,-400.0,0.00020534,2]
[359270705,1745881842102,-500.0,0.00020534,2]
[359270707,1745881842113,-400.0,0.00020534,2]
[359270709,1745881842122,-500.0,0.00020534,2]
[359270711,1745881842133,-400.0,0.00020534,2]
[359270713,1745881842142,-339.68498434,0.00020534,2]
[359270715,1745881842151,-400.0,0.00020534,2]
[359270717,1745881842161,-400.0,0.00020534,2]
[359270719,1745881842171,-400.0,0.00020534,2]
[359270721,1745881842181,-500.0,0.00020534,2]
[359270723,1745881842190,-500.0,0.00020534,2]
[359270725,1745881842199,-1716.42,0.00020534,2]
[359270727,1745881842209,-400.0,0.00020534,2]
[359270729,1745881842218,-543.12,0.00020534,2]
[359270731,1745881842228,-400.0,0.00020534,2]
[359270733,1745881842238,-400.0,0.00020534,2]
[359270735,1745881842247,-500.0,0.00020534,2]
[359270737,1745881842256,-400.0,0.00020534,2]
[359270739,1745881842266,-787.0,0.00020534,2]
[359270741,1745881842275,-400.0,0.00020534,2]
[359270743,1745881842285,-400.0,0.00020534,2]
[359270745,1745881842294,-300.0,0.00020534,2]
[359270747,1745881842303,-262.10566099,0.00020534,2]
[359270749,1745881842312,-400.0,0.00020534,2]
[359270751,1745881842321,-400.0,0.00020534,2]
[359270753,1745881842330,-400.0,0.00020534,2]
[359270755,1745881842339,-400.0,0.00020534,2]
[359270757,1745881842348,-200.0,0.00020534,2]
[359270759,1745881842358,-400.0,0.00020534,2]
[359270761,1745881842367,-400.0,0.00020534,2]
[359270763,1745881842376,-400.0,0.00020534,2]
[359270765,1745881842385,-400.0,0.00020534,2]
[359270767,1745881842395,-475.74253342,0.00020534,2]
[359270769,1745881842404,-400.0,0.00020534,2]
[359270771,1745881842414,-400.0,0.00020534,2]
[359270773,1745881842423,-400.0,0.00020534,2]
[359270775,1745881842433,-489.38,0.00020534,2]
[359270776,1745881842442,-400.0,0.00020534,2]
[359270778,1745881842451,-500.0,0.00020534,2]
[359270780,1745881842461,-400.0,0.00020534,2]
[359270782,1745881842471,-623.94,0.00020534,2]
[359270784,1745881842480,-400.0,0.00020534,2]
[359270786,1745881842490,-400.0,0.00020534,2]
[359270789,1745881842501,-400.0,0.00020534,2]
[359270791,1745881842511,-400.0,0.00020534,2]
[359270793,1745881842521,-200.0,0.00020534,2]
[359270795,1745881842530,-400.0,0.00020534,2]
[359270797,1745881842539,-400.0,0.00020534,2]
[359270800,1745881842551,-760.86,0.00020534,2]
[359270802,1745881842561,-400.0,0.00020534,2]
[359270804,1745881842570,-400.0,0.00020534,2]
[359270806,1745881842579,-413.38,0.00020534,2]
[359270808,1745881842589,-400.0,0.00020534,2]
[359270811,1745881842599,-400.0,0.00020534,2]
[359270814,1745881842609,-400.0,0.00020534,2]
[359270817,1745881842619,-400.0,0.00020534,2]
[359270820,1745881842629,-151.0,0.00020534,2]
[359270822,1745881842639,-400.0,0.00020534,2]
[359270824,1745881842650,-151.0,0.00020534,2]
[359270826,1745881842660,-212.22995306,0.00020534,2]
[359270828,1745881842670,-307.30148153,0.00020534,2]
[359270830,1745881842682,-400.0,0.00020534,2]
[359270833,1745881842692,-400.0,0.00020534,2]
[359270836,1745881842701,-500.0,0.00020534,2]
[359270839,1745881842711,-501.53,0.00020534,2]
[359270842,1745881842723,-400.0,0.00020534,2]
[359270844,1745881842733,-417.54,0.00020534,2]
[359270847,1745881842743,-400.0,0.00020534,2]
[359270849,1745881842755,-552.69,0.00020536,2]
[359270851,1745881842766,-300.0,0.00020536,2]
[359270853,1745881842777,-1249.89,0.00020536,2]
[359270855,1745881842787,-836.4,0.00020536,2]
[359270857,1745881842796,-400.0,0.00020536,2]
[359270859,1745881842806,-2523.68,0.00020536,2]
[359270861,1745881842817,-400.0,0.00020536,2]
[359270863,1745881842826,-1861.05,0.00020536,2]
[359270865,1745881842836,-400.0,0.00020536,2]
[359270867,1745881842847,-694.46,0.00020536,2]
[359270869,1745881842857,-400.0,0.00020536,2]
[359270871,1745881842867,-443.93,0.00020536,2]
[359270873,1745881842877,-151.0,0.00020536,2]
[359270875,1745881842887,-400.0,0.00020536,2]
[359270877,1745881842899,-200.0,0.00020536,2]
[359270879,1745881842909,-400.0,0.00020536,2]
[359270881,1745881842919,-1052.18,0.00020536,2]
[359270883,1745881842929,-500.0,0.00020537,2]
[359270885,1745881842938,-400.0,0.00020537,2]
[359270888,1745881842948,-400.0,0.0002054,2]
[359270890,1745881842958,-2083.6,0.0002054,2]
[359270892,1745881842968,-400.0,0.0002054,2]
[359270894,1745881842978,-400.0,0.0002054,2]
[359270896,1745881842988,-500.0,0.0002054,2]
[359270898,1745881842998,-400.0,0.0002054,2]
[359270900,1745881843008,-151.0,0.0002054,2]
[359270902,1745881843018,-632.19,0.0002054,2]
[359270904,1745881843029,-400.0,0.0002054,2]
[359270906,1745881843041,-874.36,0.0002054,2]
[359270908,1745881843055,-455.13,0.0002054,2]
[359270910,1745881843065,-1082.29,0.0002054,2]
[359270912,1745881843075,-151.0,0.0002054,2]
[359270914,1745881843085,-531.77463977,0.0002054,2]
[359270916,1745881843095,-534.32,0.0002054,2]
[359270918,1745881843105,-547.37,0.0002054,2]
[359270920,1745881843115,-400.0,0.0002054,2]
[359270922,1745881843124,-400.0,0.0002054,2]
[359270924,1745881843134,-400.0,0.0002054,2]
[359270926,1745881843143,-400.0,0.0002054,2]
[359270929,1745881843153,-400.0,0.0002054,2]
[359270931,1745881843164,-400.0,0.0002054,2]
[359270933,1745881843173,-675.853895,0.0002054,2]
[359270935,1745881843183,-675.853895,0.0002054,2]
[359270937,1745881843193,-500.0,0.00020541,2]
[359270938,1745881843203,-501.51450289,0.00020573,2]
[359270940,1745881843212,-500.0,0.00020573,2]
[359270942,1745881843222,-500.0,0.00020573,2]
[359270944,1745881843231,-499.999998,0.00020587,2]
[359270946,1745881843241,-13325.08726963,0.00020608,2]
[359270948,1745881843255,-7338.84157999,0.00020608,2]
[359270950,1745881843264,-151.0,0.00020608,2]
[359270952,1745881843274,-158.598388,0.00020608,2]
[359270954,1745881843284,-151.0,0.00020608,2]
[359270956,1745881843294,-151.0,0.00020608,2]
[359270958,1745881843303,-3215.02177542,0.00020682,2]
[359270960,1745881843312,-400.0,0.0002071,2]
[359270962,1745881843322,-400.0,0.0002071,2]
[359270964,1745881843331,-656.42,0.0002071,2]
[359270966,1745881843342,-400.0,0.0002071,2]
[359270968,1745881843351,-1074.84,0.0002071,2]
[359270970,1745881843361,-894.15,0.0002071,2]
[359270972,1745881843371,-2013.33,0.0002071,2]
[359270974,1745881843381,-400.0,0.00020711,2]
[359270976,1745881843390,-400.0,0.00020713,2]
[359270978,1745881843400,-1347.56560691,0.00020713,2]
[359270980,1745881843413,-325.05563696,0.00020713,2]
[359271049,1745881844079,-500.0,0.00020161,2]
[359271051,1745881844090,-193.14288463,0.00020161,2]
[359271053,1745881844100,-500.0,0.00020161,2]
[359271056,1745881844110,-500.0,0.00020161,2]
[359271058,1745881844120,-1172.52598914,0.00020161,2]
[359271060,1745881844130,-500.0,0.00020161,2]
[359271062,1745881844140,-308.17255023,0.00020161,2]
[359271063,1745881844150,-500.0,0.00020161,2]
[359271066,1745881844160,-1172.52598914,0.00020161,2]
[359271068,1745881844170,-444.29375688,0.00020161,2]
[359271070,1745881844180,-350.0,0.00020161,2]
[359271072,1745881844190,-500.0,0.00020161,2]
[359271074,1745881844199,-1172.52598914,0.00020161,2]
[359271076,1745881844209,-1172.52598914,0.00020161,2]
[359271078,1745881844219,-1172.52598914,0.00020161,2]
[359271080,1745881844229,-1172.52598914,0.00020161,2]
[359271082,1745881844239,-1172.52598914,0.00020161,2]
[359271084,1745881844248,-1172.52598914,0.00020161,2]
[359271086,1745881844258,-1172.52598914,0.00020161,2]
[359271088,1745881844267,-1172.52598914,0.00020161,2]
[359271090,1745881844277,-1172.52598914,0.00020161,2]
[359271091,1745881844287,-1172.52598914,0.00020161,2]
[359271092,1745881844297,-1172.52598914,0.00020161,2]
[359271093,1745881844306,-1172.52598914,0.00020161,2]
[359271094,1745881844316,-1172.52598914,0.00020161,2]
[359271095,1745881844326,-1172.52598914,0.00020161,2]
[359271096,1745881844335,-1172.52598914,0.00020161,2]
[359271097,1745881844345,-1172.52598914,0.00020161,2]
[359271098,1745881844355,-1172.52598914,0.00020161,2]
[359271099,1745881844365,-1172.52598914,0.00020161,2]
[359271100,1745881844374,-1172.52598914,0.00020161,2]
[359271101,1745881844385,-1172.52598914,0.00020161,2]
[359271102,1745881844395,-1172.52598914,0.00020161,2]
[359271103,1745881844405,-1172.52598914,0.00020161,2]
[359271104,1745881844415,-1172.52598914,0.00020161,2]
[359271105,1745881844425,-1172.52598914,0.00020161,2]
[359271106,1745881844434,-1172.52598914,0.00020161,2]
[359271107,1745881844444,-1172.52598914,0.00020161,2]
[359271108,1745881844454,-1172.52598914,0.00020161,2]
[359271109,1745881844463,-1172.52598914,0.00020161,2]
[359271110,1745881844474,-1172.52598914,0.00020161,2]
[359271112,1745881844484,-1172.52598914,0.00020161,2]
[359271114,1745881844494,-1172.52598914,0.00020161,2]
[359271115,1745881844503,-1172.52598914,0.00020161,2]
[359271118,1745881844514,-1172.52598914,0.00020161,2]
[359271119,1745881844523,-1172.52598914,0.00020161,2]
[359271122,1745881844533,-400.0,0.00020262,2]
[359271123,1745881844543,-889.42,0.0002044,2]
[359271126,1745881844553,-1088.26875613,0.00020713,2]
[359271128,1745881844562,-4178.27,0.00020713,2]
[359271130,1745881844572,-533.49911978,0.00020713,2]
[359271132,1745881844582,-400.0,0.00020713,2]
[359271134,1745881844591,-421.36,0.00020713,2]
[359271136,1745881844602,-1246.38,0.00020713,2]
[359271138,1745881844612,-5908.82,0.00020713,2]
[359271140,1745881844622,-400.0,0.00020713,2]
[359271142,1745881844632,-1081.33,0.00020713,2]
[359271144,1745881844642,-400.0,0.00020713,2]
[359271146,1745881844652,-6820.57,0.00020713,2]
[359271148,1745881844662,-1232.17,0.00020713,2]
[359271150,1745881844672,-400.0,0.00020713,2]
[359271152,1745881844686,-400.0,0.00020713,2]
[359271154,1745881844696,-2166.39,0.00020713,2]
[359271156,1745881844706,-296.14051443,0.00020713,2]
[359271158,1745881844718,-851.76,0.00020713,2]
[359271160,1745881844727,-400.0,0.00020713,2]
[359271162,1745881844737,-2216.81,0.00020713,2]
[359271164,1745881844748,-367.22307472,0.00020713,2]
[359271166,1745881844758,-637.65,0.00020713,2]
[359271189,1745881844955,-200.0,0.00020714,2]
[359271191,1745881844967,-400.0,0.00020714,2]
[359271193,1745881844977,-400.0,0.00020714,2]
[359271195,1745881844987,-400.0,0.00020714,2]
[359271197,1745881844997,-200.0,0.00020714,2]
[359271199,1745881845007,-400.0,0.00020714,2]
[359271201,1745881845016,-200.0,0.00020714,2]
[359271203,1745881845026,-400.0,0.00020714,2]
[359271205,1745881845035,-200.0,0.00020714,2]
[359271207,1745881845046,-200.0,0.00020714,2]
[359271209,1745881845056,-400.0,0.00020714,2]
[359271211,1745881845066,-200.0,0.00020714,2]
[359271213,1745881845075,-200.0,0.00020714,2]
[359271215,1745881845085,-400.0,0.00020714,2]
[359271217,1745881845095,-300.0,0.00020714,2]
[359271219,1745881845104,-200.0,0.00020714,2]
[359271221,1745881845114,-400.0,0.00020714,2]
[359271223,1745881845123,-200.0,0.00020714,2]
[359271225,1745881845133,-462.33167693,0.00020714,2]
[359271227,1745881845142,-445.59222798,0.00020714,2]
[359271229,1745881845151,-731.7,0.00020714,2]
[359271231,1745881845161,-200.0,0.00020714,2]
[359271233,1745881845170,-400.0,0.00020714,2]
[359271235,1745881845181,-555.0,0.00020714,2]
[359271237,1745881845190,-400.0,0.00020714,2]
[359271239,1745881845200,-400.0,0.00020714,2]
[359271241,1745881845209,-835.12,0.00020714,2]
[359271243,1745881845219,-200.0,0.00020714,2]
[359271245,1745881845228,-200.0,0.00020714,2]
[359271247,1745881845238,-400.0,0.00020714,2]
[359271249,1745881845247,-200.0,0.00020714,2]
[359271251,1745881845256,-203.937019,0.00020714,2]
[359271253,1745881845265,-200.0,0.00020714,2]
[359271255,1745881845274,-200.0,0.00020714,2]
[359271257,1745881845285,-400.0,0.00020714,2]
[359271259,1745881845295,-400.0,0.00020714,2]
[359271261,1745881845304,-200.0,0.00020714,2]
[359271263,1745881845314,-200.0,0.00020714,2]
[359271265,1745881845323,-200.0,0.00020714,2]
[359271267,1745881845333,-400.0,0.00020714,2]
[359271269,1745881845342,-400.0,0.00020714,2]
[359271270,1745881845353,-203.63130158,0.00020714,2]
[359271273,1745881845363,-200.0,0.00020714,2]
[359271275,1745881845374,-200.0,0.00020714,2]
[359271277,1745881845384,-200.0,0.00020714,2]
[359271279,1745881845397,-400.0,0.00020714,2]
[359271281,1745881845408,-408.77,0.00020714,2]
[359271283,1745881845418,-200.0,0.00020714,2]
[359271285,1745881845427,-200.0,0.00020714,2]
[359271287,1745881845437,-400.0,0.00020714,2]
[359271289,1745881845447,-200.0,0.00020714,2]
[359271291,1745881845457,-400.0,0.00020714,2]
[359271293,1745881845467,-400.0,0.00020714,2]
[359271295,1745881845477,-200.0,0.00020714,2]
[359271297,1745881845486,-203.14575811,0.00020714,2]
[359271298,1745881845495,-200.0,0.00020714,2]
[359271300,1745881845505,-200.0,0.00020714,2]
[359271302,1745881845514,-400.0,0.00020714,2]
[359271304,1745881845523,-200.0,0.00020714,2]
[359271306,1745881845533,-200.0,0.00020714,2]
[359271308,1745881845542,-400.0,0.00020714,2]
[359271310,1745881845552,-205.9016316,0.00020714,2]
[359271312,1745881845562,-201.16690227,0.00020714,2]
[359271314,1745881845571,-400.0,0.00020714,2]
[359271316,1745881845581,-204.50369162,0.00020714,2]
[359271318,1745881845590,-200.0,0.00020714,2]
[359271320,1745881845600,-435.19,0.00020714,2]
[359271322,1745881845609,-400.0,0.00020714,2]
[359271324,1745881845619,-400.0,0.00020714,2]
[359271326,1745881845628,-200.0,0.00020714,2]
[359271328,1745881845637,-200.0,0.00020714,2]
[359271330,1745881845648,-200.0,0.00020714,2]
[359271332,1745881845657,-400.0,0.00020714,2]
[359271334,1745881845667,-442.09,0.00020714,2]
[359271336,1745881845679,-200.0,0.00020714,2]
[359271338,1745881845688,-400.0,0.00020714,2]
[359271340,1745881845697,-1007.57,0.00020714,2]
[359271342,1745881845707,-200.0,0.00020714,2]
[359271344,1745881845717,-200.0,0.00020714,2]
[359271346,1745881845726,-400.0,0.00020714,2]
[359271348,1745881845736,-200.0,0.00020714,2]
[359271350,1745881845745,-215.2037673,0.00020714,2]
[359271352,1745881845755,-891.46,0.00020714,2]
[359271354,1745881845765,-200.0,0.00020714,2]
[359271356,1745881845775,-400.0,0.00020714,2]
[359271358,1745881845784,-200.0,0.00020714,2]
[359271360,1745881845794,-202.10618709,0.00020714,2]
[359271362,1745881845804,-205.3275433,0.00020714,2]
[359271364,1745881845813,-200.0,0.00020714,2]
[359271366,1745881845823,-200.0,0.00020714,2]
[359271368,1745881845833,-200.0,0.00020714,2]
[359271370,1745881845843,-554.3,0.00020714,2]
[359271372,1745881845853,-200.0,0.00020714,2]
[359271374,1745881845863,-200.0,0.00020714,2]
[359271376,1745881845873,-281.79393633,0.00020714,2]
[359271378,1745881845882,-400.0,0.00020714,2]
[359271380,1745881845892,-400.0,0.00020714,2]
[359271382,1745881845902,-400.0,0.00020714,2]
[359271384,1745881845912,-400.0,0.00020714,2]
[359271386,1745881845922,-459.71,0.00020714,2]
[359271388,1745881845931,-200.0,0.00020714,2]
[359271390,1745881845942,-400.0,0.00020714,2]
[359271392,1745881845952,-400.0,0.00020714,2]
[359271394,1745881845962,-543.56,0.00020714,2]
[359271396,1745881845972,-214.43137117,0.00020714,2]
[359271398,1745881845983,-400.0,0.00020714,2]
[359271400,1745881845993,-400.0,0.00020714,2]
[359271402,1745881846003,-1218.87,0.00020714,2]
[359271404,1745881846013,-759.39,0.00020714,2]
[359271406,1745881846023,-206.15320426,0.00020714,2]
[359271408,1745881846034,-400.0,0.00020714,2]
[359271410,1745881846043,-791.97,0.00020714,2]
[359271412,1745881846053,-1166.76,0.00020714,2]
[359271414,1745881846063,-400.0,0.00020714,2]
[359271416,1745881846072,-1315.7,0.00020714,2]
[359271418,1745881846082,-400.0,0.00020714,2]
[359271420,1745881846091,-945.14,0.00020714,2]
[359271422,1745881846102,-400.0,0.00020714,2]
[359271425,1745881846122,-400.0,0.00020714,2]
[359271427,1745881846133,-200.0,0.00020714,2]
[359271429,1745881846144,-400.0,0.00020714,2]
[359271432,1745881846154,-732.34,0.00020714,2]
[359271434,1745881846164,-400.0,0.00020714,2]
[359271436,1745881846174,-400.0,0.00020714,2]
[359271438,1745881846184,-400.0,0.00020714,2]
[359271440,1745881846194,-400.0,0.00020714,2]
[359271442,1745881846204,-400.0,0.00020714,2]
[359271444,1745881846213,-812.06,0.00020714,2]
[359271446,1745881846223,-400.0,0.00020714,2]
[359271448,1745881846233,-405.37,0.00020714,2]
[359271450,1745881846243,-400.0,0.00020714,2]
[359271452,1745881846253,-200.0,0.00020714,2]
[359271454,1745881846263,-400.0,0.00020714,2]
[359271456,1745881846272,-982.88,0.00020714,2]
[359271458,1745881846282,-400.0,0.00020714,2]
[359271460,1745881846292,-400.0,0.00020714,2]
[359271462,1745881846302,-843.06,0.00020714,2]
[359271464,1745881846311,-908.46,0.00020714,2]
[359271466,1745881846321,-400.0,0.00020714,2]
[359271468,1745881846331,-400.0,0.00020714,2]
[359271470,1745881846340,-400.0,0.00020714,2]
[359271472,1745881846350,-1314.6,0.00020714,2]
[359271474,1745881846360,-1867.25,0.00020714,2]
[359271476,1745881846370,-412.69,0.00020714,2]
[359271478,1745881846380,-400.0,0.00020714,2]
[359271480,1745881846390,-200.0,0.00020714,2]
[359271482,1745881846400,-400.0,0.00020714,2]
[359271484,1745881846410,-468.43,0.00020714,2]
[359271486,1745881846420,-400.0,0.00020714,2]
[359271488,1745881846429,-449.79,0.00020714,2]
[359271491,1745881846439,-400.0,0.00020714,2]
[359271493,1745881846450,-547.48,0.00020714,2]
[359271495,1745881846460,-453.55,0.00020714,2]
[359271497,1745881846470,-521.19,0.00020714,2]
[359271499,1745881846479,-400.0,0.00020714,2]
[359271501,1745881846489,-1634.38,0.00020714,2]
[359271503,1745881846498,-400.0,0.00020714,2]
[359271505,1745881846508,-400.0,0.00020714,2]
[359271507,1745881846517,-558.63,0.00020714,2]
[359271509,1745881846527,-167.07059874,0.00020714,2]
[359271511,1745881846537,-400.0,0.00020714,2]
[359271513,1745881846547,-400.0,0.00020714,2]
[359271515,1745881846556,-619.38,0.00020714,2]
[359271517,1745881846567,-677.02,0.00020714,2]
[359271519,1745881846577,-400.0,0.00020714,2]
[359271521,1745881846586,-400.0,0.00020714,2]
[359271523,1745881846595,-400.0,0.00020714,2]
[359271525,1745881846605,-889.42,0.00020714,2]
[359271527,1745881846614,-479.01,0.00020715,2]
[359271529,1745881846623,-400.0,0.00020715,2]
[359271531,1745881846633,-400.0,0.00020715,2]
[359271533,1745881846642,-400.0,0.00020715,2]
[359271535,1745881846653,-732.41,0.00020715,2]
[359271537,1745881846662,-400.0,0.00020715,2]
[359271539,1745881846672,-400.0,0.00020715,2]
[359271541,1745881846683,-400.0,0.00020715,2]
[359271543,1745881846692,-660.46,0.00020715,2]
[359271545,1745881846701,-331.05279204,0.00020715,2]
[359271547,1745881846711,-400.0,0.00020715,2]
[359271549,1745881846722,-400.0,0.00020715,2]
[359271551,1745881846731,-400.0,0.00020715,2]
[359271553,1745881846741,-400.0,0.00020715,2]
[359271555,1745881846750,-1401.24,0.00020715,2]
[359271557,1745881846760,-711.61,0.00020715,2]
[359271560,1745881846770,-400.0,0.00020715,2]
[359271562,1745881846779,-400.0,0.00020715,2]
[359271564,1745881846789,-400.0,0.00020715,2]
[359271566,1745881846800,-400.0,0.00020715,2]
[359271568,1745881846809,-400.0,0.00020715,2]
[359271570,1745881846819,-575.64,0.00020715,2]
[359271572,1745881846828,-517.04,0.00020715,2]
[359271574,1745881846838,-400.0,0.00020715,2]
[359271576,1745881846847,-200.0,0.00020715,2]
[359271578,1745881846857,-636.86,0.00020715,2]
[359271580,1745881846867,-400.0,0.00020715,2]
[359271582,1745881846876,-400.0,0.00020715,2]
[359271584,1745881846886,-2780.42,0.00020715,2]
[359271586,1745881846895,-500.0,0.00020715,2]
[359271588,1745881846905,-435.77,0.00020715,2]
[359271590,1745881846914,-1862.66,0.00020715,2]
[359271592,1745881846924,-200.0,0.00020715,2]
[359271594,1745881846935,-1082.86,0.00020715,2]
[359271596,1745881846945,-400.0,0.00020715,2]
[359271598,1745881846957,-200.0,0.00020715,2]
[359271600,1745881846966,-400.0,0.00020715,2]
[359271602,1745881846975,-482.41,0.00020715,2]
[359271604,1745881846985,-400.0,0.00020715,2]
[359271606,1745881846995,-675.853895,0.00020715,2]
[359271608,1745881847004,-675.853895,0.00020715,2]
[359271610,1745881847015,-4687.26,0.00020715,2]
[359271612,1745881847027,-400.0,0.00020715,2]
[359271614,1745881847038,-400.0,0.00020715,2]
[359271616,1745881847048,-2496.76,0.00020715,2]
[359271618,1745881847057,-534.9,0.00020715,2]
[359271620,1745881847068,-888.72,0.00020715,2]
[359271622,1745881847077,-1476.58,0.00020715,2]
[359271624,1745881847087,-645.27,0.00020715,2]
[359271626,1745881847096,-400.0,0.00020715,2]
[359271628,1745881847106,-400.0,0.00020715,2]
[359271630,1745881847115,-400.0,0.00020715,2]
[359271632,1745881847124,-400.0,0.00020715,2]
[359271634,1745881847133,-638.81,0.00020715,2]
[359271636,1745881847143,-668.26,0.00020715,2]
[359271638,1745881847153,-843.15,0.00020715,2]
[359271640,1745881847163,-477.68,0.00020715,2]
[359271642,1745881847172,-151.0,0.00020753,2]
[359271644,1745881847181,-500.0,0.00020773,2]
[359271647,1745881847195,-500.0,0.00020773,2]
[359271649,1745881847204,-500.0,0.00020773,2]
[359271651,1745881847214,-448.33480722,0.00020773,2]
[359271653,1745881847224,-500.0,0.00020773,2]
[359271655,1745881847233,-500.0,0.00020773,2]
[359271657,1745881847243,-318.67815574,0.00020773,2]
[359271660,1745881847262,-181.32184426,0.00020773,2]
[359271662,1745881847272,-500.0,0.00020773,2]
[359271664,1745881847281,-500.0,0.00020773,2]
[359271666,1745881847291,-500.0,0.00020773,2]
[359271668,1745881847300,-554.24361591,0.00020773,2]
[359271680,1745881847406,-500.0,0.00020773,2]
[359271682,1745881847415,-500.0,0.00020773,2]
[359271684,1745881847425,-500.0,0.00020773,2]
[359271686,1745881847435,-500.0,0.00020773,2]
[359271688,1745881847444,-500.0,0.00020773,2]
[359271690,1745881847453,-500.0,0.00020773,2]
[359271692,1745881847463,-500.0,0.00020773,2]
[359271694,1745881847472,-500.0,0.00020773,2]
[359271696,1745881847480,-500.0,0.00020773,2]
[359271698,1745881847489,-500.0,0.00020773,2]
[359271699,1745881847499,-501.32976245,0.00020773,2]
[359271701,1745881847508,-500.0,0.00020773,2]
[359271703,1745881847518,-12196.87823837,0.00020808,2]
[359271706,1745881847529,-5387.61652021,0.00020808,2]
[359271708,1745881847541,-1778.7893169,0.00020808,2]
[359271764,1745881848262,-400.0,0.00020167,2]
[359271766,1745881848272,-151.0,0.00020262,2]
[359271768,1745881848281,-400.0,0.00020441,2]
[359271770,1745881848291,-400.0,0.00020536,2]
[359271772,1745881848300,-400.0,0.00020715,2]
[359271774,1745881848309,-15320.93874471,0.00020808,2]
[359271776,1745881848318,-400.0,0.00020808,2]
[359271778,1745881848328,-400.0,0.00020808,2]
[359271780,1745881848337,-400.0,0.00020808,2]
[359271782,1745881848346,-400.0,0.00020808,2]
[359271784,1745881848355,-400.0,0.00020808,2]
[359271786,1745881848364,-400.0,0.00020808,2]
[359271788,1745881848373,-400.0,0.00020808,2]
[359271790,1745881848382,-400.0,0.00020808,2]
[359271792,1745881848391,-400.0,0.00020808,2]
[359271794,1745881848401,-168.54490671,0.00020808,2]
[359271796,1745881848410,-400.0,0.00020808,2]
[359271798,1745881848420,-400.0,0.00020808,2]
[359271800,1745881848429,-1716.42,0.00020808,2]
[359271802,1745881848438,-400.0,0.00020808,2]
[359271804,1745881848447,-543.12,0.00020808,2]
[359271806,1745881848456,-400.0,0.00020808,2]
[359271808,1745881848466,-400.0,0.00020808,2]
[359271810,1745881848476,-400.0,0.00020808,2]
[359271812,1745881848485,-787.0,0.00020808,2]
[359271814,1745881848494,-400.0,0.00020808,2]
[359271816,1745881848503,-400.0,0.00020808,2]
[359271818,1745881848512,-300.0,0.00020808,2]
[359271820,1745881848522,-400.0,0.00020808,2]
[359271822,1745881848531,-400.0,0.00020808,2]
[359271824,1745881848540,-400.0,0.00020808,2]
[359271826,1745881848549,-300.0,0.00020808,2]
[359271828,1745881848558,-300.0,0.00020808,2]
[359271830,1745881848568,-400.0,0.00020808,2]
[359271832,1745881848577,-308.9031738,0.00020808,2]
[359271834,1745881848586,-400.0,0.00020808,2]
[359271836,1745881848596,-300.0,0.00020808,2]
[359271838,1745881848605,-400.0,0.00020808,2]
[359271840,1745881848614,-489.38,0.00020808,2]
[359271842,1745881848623,-300.0,0.00020808,2]
[359271844,1745881848632,-300.0,0.00020808,2]
[359271846,1745881848642,-623.94,0.00020808,2]
[359271848,1745881848651,-300.0,0.00020808,2]
[359271850,1745881848660,-400.0,0.00020808,2]